fUSD/lending_fUSD_20250503
["ID","MTS","AMOUNT","RATE_DAILY","PERIOD"]
[359717555,1746275439844,-1042.33,0.00019733,2]
[359717556,1746275439854,-610.75,0.00019733,2]
[359717557,1746275439863,-661.98,0.00019733,2]
[359717558,1746275439872,-662.88,0.00019733,2]
[359717559,1746275439882,-450.0,0.00019733,2]
[359717560,1746275439891,-450.0,0.00019733,2]
[359717561,1746275439901,-450.0,0.00019733,2]
[359717562,1746275439910,-450.0,0.00019733,2]
[359717563,1746275439920,-711.06,0.00019733,2]
[359717564,1746275439929,-450.0,0.00019733,2]
[359717565,1746275439940,-450.0,0.00019733,2]
[359717566,1746275439950,-450.0,0.00019733,2]
[359717567,1746275439961,-450.0,0.00019733,2]
[359717568,1746275439971,-571.66696018,0.00019733,2]
[359717569,1746275439980,-450.0,0.00019733,2]
[359717570,1746275439989,-819.09,0.00019733,2]
[359717571,1746275439999,-500.0,0.00019733,2]
[359717572,1746275440010,-450.0,0.00019733,2]
[359717573,1746275440021,-450.0,0.00019733,2]
[359717574,1746275440032,-471.19,0.00019733,2]
[359717575,1746275440042,-450.0,0.00019733,2]
[359717576,1746275440052,-450.0,0.00019733,2]
[359717577,1746275440062,-450.0,0.00019733,2]
[359717578,1746275440071,-450.0,0.00019733,2]
[359717579,1746275440080,-450.0,0.00019733,2]
[359717580,1746275440090,-450.0,0.00019733,2]
[359717581,1746275440099,-450.0,0.00019733,2]
[359717582,1746275440108,-450.0,0.00019733,2]
[359717583,1746275440117,-450.0,0.00019733,2]
[359717584,1746275440127,-557.75,0.00019733,2]
[359717585,1746275440136,-532.11,0.00019733,2]
[359717586,1746275440145,-450.0,0.00019733,2]
[359717587,1746275440154,-450.0,0.00019733,2]
[359717588,1746275440163,-450.0,0.00019733,2]
[359717589,1746275440173,-450.0,0.00019733,2]
[359717590,1746275440182,-450.0,0.00019733,2]
[359717591,1746275440192,-450.0,0.00019733,2]
[359717592,1746275440201,-1211.13,0.00019733,2]
[359717593,1746275440210,-450.0,0.00019733,2]
[359717594,1746275440220,-450.0,0.00019733,2]
[359717595,1746275440230,-771.12,0.00019733,2]
[359717596,1746275440239,-450.0,0.00019733,2]
[359717597,1746275440249,-450.0,0.00019733,2]
[359717598,1746275440259,-450.0,0.00019733,2]
[359717599,1746275440268,-517.49,0.00019733,2]
[359717600,1746275440277,-450.0,0.00019733,2]
[359717601,1746275440286,-450.0,0.00019733,2]
[359717602,1746275440294,-450.0,0.00019733,2]
[359717603,1746275440303,-937.71,0.00019733,2]
[359717604,1746275440313,-2564.67,0.00019733,2]
[359717605,1746275440322,-450.0,0.00019733,2]
[359717606,1746275440331,-606.66,0.00019733,2]
[359717607,1746275440340,-450.0,0.00019733,2]
[359717608,1746275440349,-450.0,0.00019733,2]
[359717609,1746275440358,-450.0,0.00019733,2]
[359717610,1746275440367,-450.0,0.00019733,2]
[359717611,1746275440376,-450.0,0.00019733,2]
[359717612,1746275440388,-450.0,0.00019733,2]
[359717613,1746275440398,-450.0,0.00019733,2]
[359717614,1746275440407,-487.38,0.00019733,2]
[359717615,1746275440416,-450.0,0.00019733,2]
[359717616,1746275440426,-450.0,0.00019733,2]
[359717617,1746275440435,-450.0,0.00019733,2]
[359717618,1746275440444,-450.0,0.00019733,2]
[359717619,1746275440454,-697.51,0.00019733,2]
[359717620,1746275440464,-450.0,0.00019733,2]
[359717621,1746275440479,-563.87,0.00019733,2]
[359717622,1746275440489,-450.0,0.00019733,2]
[359717623,1746275440498,-450.0,0.00019733,2]
[359717624,1746275440508,-450.0,0.00019733,2]
[359717625,1746275440517,-5434.4,0.00019733,2]
[359717626,1746275440526,-450.0,0.00019733,2]
[359717627,1746275440535,-450.0,0.00019733,2]
[359717628,1746275440544,-1210.99,0.00019733,2]
[359717629,1746275440554,-559.68,0.00019733,2]
[359717630,1746275440563,-450.0,0.00019733,2]
[359717631,1746275440572,-450.0,0.00019733,2]
[359717632,1746275440581,-324.99534254,0.00019733,2]
[359717633,1746275440590,-450.0,0.00019733,2]
[359717634,1746275440599,-450.0,0.00019733,2]
[359717635,1746275440608,-260.07111918,0.00019733,2]
[359717636,1746275440617,-782.73,0.00019733,2]
[359717637,1746275440626,-450.0,0.00019733,2]
[359717638,1746275440636,-450.0,0.00019733,2]
[359717639,1746275440645,-672.04,0.00019733,2]
[359717640,1746275440654,-450.0,0.00019733,2]
[359717641,1746275440664,-562.94038197,0.00019733,2]
[359717642,1746275440673,-450.0,0.00019733,2]
[359717643,1746275440683,-450.0,0.00019733,2]
[359717644,1746275440692,-198.04898131,0.00019733,2]
[359717645,1746275440702,-450.0,0.00019733,2]
[359717646,1746275440711,-398.2486717,0.00019733,2]
[359717647,1746275440720,-450.0,0.00019733,2]
[359717648,1746275440730,-450.0,0.00019733,2]
[359717649,1746275440740,-1279.84,0.00019733,2]
[359717650,1746275440753,-450.0,0.00019733,2]
[359717651,1746275440762,-450.0,0.00019733,2]
[359717652,1746275440772,-450.0,0.00019733,2]
[359717653,1746275440781,-533.2085114,0.00019733,2]
[359717654,1746275440790,-604.99,0.00019733,2]
[359717655,1746275440799,-450.0,0.00019733,2]
[359717656,1746275440809,-456.68072204,0.00019733,2]
[359717657,1746275440818,-1212.56,0.00019733,2]
[359717658,1746275440828,-450.0,0.00019733,2]
[359717659,1746275440837,-450.0,0.00019733,2]
[359717660,1746275440847,-450.0,0.00019733,2]
[359717661,1746275440856,-450.0,0.00019733,2]
[359717662,1746275440866,-450.0,0.00019733,2]
[359717663,1746275440876,-450.0,0.00019733,2]
[359717664,1746275440885,-450.0,0.00019733,2]
[359717665,1746275440894,-858.11,0.00019733,2]
[359717666,1746275440904,-450.0,0.00019733,2]
[359717667,1746275440915,-450.0,0.00019733,2]
[359717668,1746275440925,-450.0,0.00019733,2]
[359717669,1746275440934,-565.26,0.00019733,2]
[359717670,1746275440943,-463.31822986,0.00019733,2]
[359717671,1746275440952,-450.0,0.00019734,2]
[359717672,1746275440961,-450.0,0.00019734,2]
[359717673,1746275440970,-450.0,0.00019734,2]
[359717674,1746275440979,-500.0,0.00019734,2]
[359717675,1746275440989,-500.0,0.00019734,2]
[359717676,1746275440997,-679.32,0.00019734,2]
[359717677,1746275441006,-869.08,0.00019734,2]
[359717678,1746275441015,-450.0,0.00019734,2]
[359717679,1746275441025,-1318.72,0.00019734,2]
[359717680,1746275441034,-450.0,0.00019734,2]
[359717681,1746275441046,-828.34,0.00019734,2]
[359717682,1746275441056,-508.42,0.00019734,2]
[359717683,1746275441065,-818.15,0.00019734,2]
[359717684,1746275441076,-524.8,0.00019734,2]
[359717685,1746275441086,-450.0,0.00019734,2]
[359717686,1746275441097,-1488.74,0.00019734,2]
[359717687,1746275441107,-723.03,0.00019734,2]
[359717688,1746275441119,-632.01,0.00019734,2]
[359717689,1746275441128,-450.0,0.00019734,2]
[359717690,1746275441137,-562.94,0.00019734,2]
[359717691,1746275441146,-450.0,0.00019734,2]
[359717692,1746275441156,-450.0,0.00019734,2]
[359717693,1746275441165,-450.0,0.00019734,2]
[359717694,1746275441173,-450.0,0.00019734,2]
[359717695,1746275441183,-1104.21,0.00019734,2]
[359717696,1746275441193,-450.0,0.00019734,2]
[359717697,1746275441202,-450.0,0.00019734,2]
[359717698,1746275441211,-457.37785718,0.00019734,2]
[359717699,1746275441220,-450.0,0.00019734,2]
[359717700,1746275441230,-450.0,0.00019734,2]
[359717701,1746275441239,-450.0,0.00019734,2]
[359717702,1746275441248,-2370.98,0.00019734,2]
[359717703,1746275441257,-450.0,0.00019734,2]
[359717704,1746275441266,-1032.14,0.00019734,2]
[359717705,1746275441275,-450.0,0.00019734,2]
[359717706,1746275441287,-2123.75,0.00019734,2]
[359717707,1746275441297,-481.23,0.00019734,2]
[359717708,1746275441307,-450.0,0.00019734,2]
[359717709,1746275441316,-612.32,0.00019734,2]
[359717710,1746275441326,-450.0,0.00019734,2]
[359717711,1746275441336,-450.0,0.00019734,2]
[359717712,1746275441347,-450.0,0.00019734,2]
[359717713,1746275441358,-450.0,0.00019734,2]
[359717714,1746275441368,-450.0,0.00019734,2]
[359717715,1746275441378,-909.3,0.00019734,2]
[359717716,1746275441390,-789.94,0.00019734,2]
[359717717,1746275441399,-449.73983441,0.00019734,2]
[359717718,1746275441408,-450.0,0.00019734,2]
[359717719,1746275441417,-450.0,0.00019734,2]
[359717720,1746275441426,-450.0,0.00019734,2]
[359717721,1746275441436,-450.0,0.00019734,2]
[359717722,1746275441445,-450.0,0.00019734,2]
[359717723,1746275441454,-719.85,0.00019734,2]
[359717724,1746275441467,-450.0,0.00019734,2]
[359717725,1746275441476,-678.65,0.00019734,2]
[359717726,1746275441485,-571.09,0.00019734,2]
[359717727,1746275441495,-500.0,0.00019735,2]
[359717728,1746275441504,-153.14775644,0.0001974,2]
[359717729,1746275441515,-150.0,0.0001974,2]
[359717730,1746275441525,-150.0,0.0001974,2]
[359717731,1746275441534,-500.0,0.0001974,2]
[359717732,1746275441543,-150.0,0.0001974,2]
[359717733,1746275441552,-155.75221986,0.0001974,2]
[359717734,1746275441562,-500.0,0.0001974,2]
[359717735,1746275441572,-152.6145878,0.0001974,2]
[359717736,1746275441581,-152.14871149,0.0001974,2]
[359717737,1746275441593,-150.0,0.0001974,2]
[359717738,1746275441602,-151.58141224,0.0001974,2]
[359717739,1746275441612,-57119.05505543,0.0001975,2]
[359717740,1746275441622,-2333.41230373,0.00019752,2]
[359717741,1746275441631,-2081.56893836,0.00019752,2]
[359717742,1746275441641,-500.0,0.00019773,2]
[359717743,1746275441650,-162.1885406,0.00019773,2]
[359717744,1746275441659,-500.0,0.00019773,2]
[359717745,1746275441669,-500.0,0.00019773,2]
[359717746,1746275441678,-500.0,0.00019773,2]
[359717747,1746275441687,-500.0,0.00019773,2]
[359717748,1746275441696,-500.0,0.00019773,2]
[359717749,1746275441705,-500.0,0.00019773,2]
[359717750,1746275441715,-500.0,0.00019773,2]
[359717751,1746275441724,-160.11863319,0.00019773,2]
[359717752,1746275441733,-500.0,0.00019773,2]
[359717753,1746275441957,-2333.41230373,0.00019781,2]
[359717754,1746275441967,-2081.56893836,0.00019781,2]
[359717755,1746275441976,-2497.5502955,0.00019799,2]
[359717756,1746275441985,-2333.41230373,0.00019811,2]
[359717757,1746275441995,-2081.56893836,0.00019811,2]
[359717758,1746275442005,-98.86314957,0.00019822,2]
[359717759,1746275442014,-151.0,0.00019823,2]
[359717760,1746275442023,-668.65185757,0.00019823,2]
[359717761,1746275442032,-12500.0,0.0001983,2]
[359717762,1746275442042,-150.0,0.00019831,2]
[359717763,1746275442051,-9763.6,0.00019831,2]
[359717764,1746275442060,-450.0,0.00019833,2]
[359717765,1746275442070,-450.0,0.00019833,2]
[359717766,1746275442079,-450.0,0.00019833,2]
[359717767,1746275442089,-450.0,0.00019833,2]
[359717768,1746275442099,-1183.65,0.00019833,2]
[359717769,1746275442109,-450.0,0.00019833,2]
[359717770,1746275442118,-450.0,0.00019833,2]
[359717771,1746275442127,-722.75,0.00019833,2]
[359717772,1746275442136,-450.0,0.00019833,2]
[359717773,1746275442146,-450.0,0.00019833,2]
[359717774,1746275442155,-450.000001,0.00019833,2]
[359717775,1746275442165,-450.0,0.00019833,2]
[359717776,1746275442174,-450.0,0.00019833,2]
[359717777,1746275442184,-450.0,0.00019833,2]
[359717778,1746275442193,-461.54,0.00019833,2]
[359717779,1746275442203,-613.07,0.00019833,2]
[359717780,1746275442212,-649.8,0.00019833,2]
[359717781,1746275442221,-625.95,0.00019833,2]
[359717782,1746275442231,-2335.46731861,0.00019833,2]
[359717783,1746275442248,-1692.45268139,0.00019833,2]
[359717784,1746275442257,-18712.79821936,0.00019834,2]
[359717786,1746275442585,-450.0,0.00019732,2]
[359717787,1746275442595,-135.99689892,0.00019732,2]
[359717790,1746275442616,-314.00310108,0.00019732,2]
[359717792,1746275442626,-450.0,0.00019733,2]
[359717793,1746275442636,-503.23,0.00019833,2]
[359717794,1746275442646,-758.84178064,0.00019834,2]
[359717795,1746275442655,-29999.99,0.00019835,2]
[359717796,1746275442665,-12500.0,0.00019838,2]
[359717797,1746275442675,-2000.0,0.0001984,2]
[359717798,1746275442685,-2333.41230373,0.00019841,2]
[359717800,1746275442694,-2081.56893836,0.00019841,2]
[359717802,1746275442704,-500.0,0.00019846,2]
[359717804,1746275442714,-150.0,0.00019846,2]
[359717805,1746275442723,-500.0,0.00019846,2]
[359717806,1746275442732,-160.39430857,0.00019846,2]
[359717807,1746275442742,-500.0,0.00019846,2]
[359717809,1746275442752,-150.0,0.00019846,2]
[359717811,1746275442762,-150.0,0.00019846,2]
[359717812,1746275442772,-12500.0,0.00019847,2]
[359717813,1746275442782,-12500.0,0.00019856,2]
[359717814,1746275442792,-12500.0,0.00019865,2]
[359717815,1746275442802,-2333.41230373,0.0001987,2]
[359717816,1746275442811,-2081.56893836,0.0001987,2]
[359717817,1746275442821,-12500.0,0.00019874,2]
[359717818,1746275442832,-12500.0,0.00019882,2]
[359717819,1746275442841,-286.28925081,0.00019886,2]
[359717820,1746275442851,-286.28925081,0.00019888,2]
[359717821,1746275442860,-500.0,0.0001989,2]
[359717822,1746275442870,-500.0,0.0001989,2]
[359717823,1746275442879,-286.28925081,0.00019891,2]
[359717824,1746275442889,-12500.0,0.00019891,2]
[359717825,1746275442898,-286.28925081,0.00019893,2]
[359717826,1746275442908,-151.0,0.00019895,2]
[359717827,1746275442917,-286.28925081,0.00019895,2]
[359717828,1746275442927,-151.0,0.00019896,2]
[359717829,1746275442937,-286.28925081,0.00019898,2]
[359717830,1746275442947,-500.0,0.00019899,2]
[359717831,1746275442956,-12102.55636587,0.000199,2]
[359717832,1746275442965,-180.92928944,0.000199,2]
[359717833,1746275442975,-1841.449,0.000199,2]
[359717834,1746275442985,-168.088,0.000199,2]
[359717835,1746275442995,-12500.0,0.000199,2]
[359717836,1746275443004,-25046.00702548,0.000199,2]
[359717837,1746275443015,-216.95569402,0.000199,2]
[359717838,1746275443024,-4750.45013189,0.000199,3]
[359717839,1746275443034,-2333.41230373,0.000199,2]
[359717840,1746275443043,-372.82159589,0.000199,2]
[359717841,1746275443054,-1290.95436738,0.000199,2]
[359717842,1746275443064,-5685.1335544,0.000199,2]
[359717843,1746275443074,-2081.56893836,0.000199,2]
[359717844,1746275443084,-300.15915061,0.000199,2]
[359717845,1746275443095,-1950.7906524,0.000199,2]
[359717846,1746275443105,-286.28925081,0.000199,2]
[359717847,1746275443116,-151.0,0.000199,2]
[359717848,1746275443127,-151.0,0.00019904,2]
[359717849,1746275443136,-1356.0,0.00019912,2]
[359717850,1746275443145,-150.0,0.00019919,2]
[359717851,1746275443155,-300.15915061,0.00019934,2]
[359717853,1746275443164,-150.0,0.00019955,2]
[359717855,1746275443173,-300.15915061,0.00019969,2]
[359717856,1746275443183,-514.0,0.0001997,2]
[359717857,1746275443192,-500.0,0.00019973,2]
[359717858,1746275443201,-506.29141492,0.00019973,2]
[359717859,1746275443210,-500.0,0.00019973,2]
[359717860,1746275443219,-500.0,0.00019973,2]
[359717861,1746275443228,-170.0108309,0.00019973,2]
[359717862,1746275443238,-501.29466975,0.00019973,2]
[359717863,1746275443248,-369.03481286,0.00019973,2]
[359717864,1746275443258,-500.0,0.00019973,2]
[359717865,1746275443268,-500.0,0.00019973,2]
[359717866,1746275443277,-500.0,0.00019973,2]
[359717867,1746275443288,-500.0,0.00019973,2]
[359717868,1746275443299,-500.0,0.00019973,2]
[359717869,1746275443309,-160.45164529,0.00019973,2]
[359717870,1746275443319,-500.0,0.00019973,2]
[359717871,1746275443328,-500.0,0.00019973,2]
[359717872,1746275443338,-532.23391832,0.00019973,2]
[359717873,1746275443347,-500.0,0.00019973,2]
[359717874,1746275443356,-501.21994559,0.00019973,2]
[359717875,1746275443366,-505.92257895,0.00019973,2]
[359717876,1746275443375,-505.26039964,0.00019973,2]
[359717877,1746275443384,-502.98408913,0.00019973,2]
[359717878,1746275443394,-517.26161729,0.00019973,2]
[359717879,1746275443405,-500.0,0.00019973,2]
[359717880,1746275443415,-160.20238278,0.00019973,2]
[359717881,1746275443425,-500.0,0.00019973,2]
[359717882,1746275443436,-500.0,0.00019973,2]
[359717883,1746275443447,-504.43483647,0.00019973,2]
[359717884,1746275443456,-152.63342926,0.00019973,2]
[359717885,1746275443467,-150.0,0.00019973,2]
[359717886,1746275443477,-187.51902884,0.00019979,2]
[359717887,1746275443487,-128080.80077955,0.0001998,2]
[359717888,1746275443496,-731.81,0.00019985,2]
[359717889,1746275443505,-731.81,0.00019985,2]
[359717890,1746275443515,-500.0,0.00019985,2]
[359717891,1746275443524,-628.07395844,0.00019985,2]
[359717892,1746275443534,-500.0,0.00019985,2]
[359717893,1746275443543,-500.0,0.00019985,2]
[359717894,1746275443553,-500.0,0.00019985,2]
[359717895,1746275443562,-500.0,0.00019985,2]
[359717896,1746275443571,-40665.28617599,0.00019985,2]
[359717897,1746275443581,-26496.4028056,0.00019986,2]
[359717898,1746275443590,-327296.6414576,0.00019986,2]
[359717899,1746275443600,-650.43638619,0.00019986,2]
[359717900,1746275443609,-4857.4725779,0.00019986,2]
[359717901,1746275443619,-142707.9723264,0.00019986,2]
[359717902,1746275443628,-15630.7101745,0.00019986,2]
[359717903,1746275443637,-500.0,0.00019998,2]
[359717904,1746275443647,-500.0,0.00019999,2]
[359717905,1746275443657,-500.0,0.00019999,2]
[359717906,1746275443666,-500.0,0.00019999,2]
[359717907,1746275443676,-300.0,0.00019999,2]
[359717908,1746275443686,-500.0,0.00019999,2]
[359717909,1746275443696,-300.0,0.00019999,2]
[359717910,1746275443706,-300.0,0.00019999,2]
[359717911,1746275443715,-450.0,0.00019999,2]
[359717912,1746275443725,-450.0,0.00019999,2]
[359717913,1746275443735,-450.0,0.00019999,2]
[359717914,1746275443744,-450.0,0.00019999,2]
[359717915,1746275443754,-450.0,0.00019999,2]
[359717916,1746275443764,-450.0,0.00019999,2]
[359717917,1746275443774,-583.88884764,0.00019999,2]
[359717918,1746275443784,-731.81,0.00019999,2]
[359717919,1746275443793,-731.81,0.00019999,2]
[359717920,1746275443803,-731.81,0.00019999,2]
[359717921,1746275443813,-731.81,0.00019999,2]
[359717922,1746275443822,-731.81,0.00019999,2]
[359717923,1746275443832,-731.81,0.00019999,2]
[359717924,1746275443841,-731.81,0.00019999,2]
[359717925,1746275443851,-731.81,0.00019999,2]
[359717926,1746275443862,-731.81,0.00019999,2]
[359717927,1746275443873,-731.81,0.00019999,2]
[359717928,1746275443882,-731.81,0.00019999,2]
[359717929,1746275443891,-731.81,0.00019999,2]
[359717930,1746275443901,-731.81,0.00019999,2]
[359717931,1746275443911,-731.81,0.00019999,2]
[359717932,1746275443920,-731.81,0.00019999,2]
[359717933,1746275443929,-731.81,0.00019999,2]
[359717934,1746275443938,-731.81,0.00019999,2]
[359717935,1746275443947,-731.81,0.00019999,2]
[359717936,1746275443957,-731.81,0.00019999,2]
[359717937,1746275443966,-731.81,0.00019999,2]
[359717938,1746275443977,-731.81550993,0.00019999,2]
[359717939,1746275443986,-463.24295261,0.00019999,2]
[359717940,1746275443996,-500.0,0.00019999,2]
[359717941,1746275444006,-500.0,0.00019999,2]
[359717942,1746275444016,-500.0,0.00019999,2]
[359717943,1746275444026,-500.0,0.00019999,2]
[359717944,1746275444035,-500.0,0.00019999,2]
[359717945,1746275444044,-353.05,0.00019999,2]
[359717946,1746275444054,-66823.38330018,0.00019999,2]
[359717947,1746275444065,-15659.24018654,0.00019999,2]
[359717948,1746275444075,-482.17675895,0.0002,2]
[359717949,1746275444084,-2298899.31281033,0.0002,2]
[359717950,1746275444093,-1168966.7305473,0.0002,2]
[359717951,1746275444102,-323190.21164882,0.0002,2]
[359717952,1746275444127,-32903.6269269,0.0002,2]
[359717953,1746275444365,-450.0,0.00019732,2]
[359717954,1746275444376,-450.0,0.00019732,2]
[359717955,1746275444386,-510.32028494,0.00019733,2]
[359717956,1746275444396,-450.0,0.00019733,2]
[359717957,1746275444408,-450.0,0.00019733,2]
[359717958,1746275444418,-193.37308347,0.000199,3]
[359717959,1746275444429,-1987.69195316,0.0002,2]
[359717969,1746275448273,-231716.41768127,0.0002,2]
[359717970,1746275448285,-7152.00000077,0.0002,2]
[359717971,1746275448297,-1123.17118571,0.0002,2]
[359717972,1746275449023,-450.0,0.00019732,2]
[359717973,1746275449033,-450.0,0.00019732,2]
[359717974,1746275449043,-450.0,0.00019733,2]
[359717975,1746275449053,-79.27109436,0.0002,2]
[359717976,1746275449082,-18607.99993774,0.0002,2]
[359717977,1746275449093,-2617.60741963,0.0002,2]
[359717978,1746275449104,-3548.72933696,0.0002,2]
[359717983,1746275547675,206.1717,0.0002,23]
[359718000,1746275672196,199.0,0.00032877,60]
[359718006,1746275802248,250.0,0.00018842,7]
[359718013,1746276039451,543.07,0.00016966,2]
[359718014,1746276039662,543.07,0.0001923,2]
[359718017,1746276106932,250.0,0.00017,2]
[359718018,1746276108000,300.0,0.00019,2]
[359718022,1746276254921,1000.0,0.00018768,2]
[359718025,1746276342671,12111.8057295,0.00018,2]
[359718039,1746276517742,787.66,0.00018768,2]
[359718049,1746276631945,-473.321112,0.00019532,2]
[359718050,1746276631954,-196.60838061,0.00019631,2]
[359718051,1746276631966,-552.69741939,0.00019631,2]
[359718052,1746276631975,-32.83104009,0.00019631,2]
[359718053,1746276631985,-118.16895991,0.00019631,2]
[359718054,1746276631998,-496.95941534,0.00019632,2]
[359718055,1746276632009,-994.86132127,0.00019632,2]
[359718056,1746276632018,-521.28867843,0.00019632,2]
[359718057,1746276632029,-265.71132157,0.00019632,2]
[359718058,1746276632039,-1200.0,0.00019632,2]
[359718059,1746276632048,-7788.06667843,0.00019633,2]
[359718060,1746276632061,-3693.33780679,0.00019633,2]
[359718061,1746276632073,-2016.30819884,0.00019633,2]
[359718062,1746276632118,-1809.20304234,0.00019633,2]
[359718063,1746276632130,-342.63599996,0.00019633,2]
[359718124,1746276637896,-10592.45,0.00019633,2]
[359718125,1746276637909,-30422.60821933,0.00019633,2]
[359718126,1746276637919,-761.59947889,0.00019657,2]
[359718127,1746276637929,-761.59947889,0.00019657,2]
[359718128,1746276637939,-761.59947889,0.00019657,2]
[359718129,1746276637949,-761.59947889,0.00019657,2]
[359718130,1746276637960,-761.59947889,0.00019657,2]
[359718131,1746276637969,-761.59947889,0.00019657,2]
[359718132,1746276637978,-761.59947889,0.00019657,2]
[359718133,1746276637988,-761.59947889,0.00019657,2]
[359718134,1746276638001,-761.59947889,0.00019657,2]
[359718135,1746276638011,-761.59947889,0.00019657,2]
[359718136,1746276638021,-761.59947889,0.00019657,2]
[359718137,1746276638032,-761.59947889,0.00019657,2]
[359718138,1746276638042,-761.59947889,0.00019657,2]
[359718139,1746276638052,-761.59947889,0.00019657,2]
[359718140,1746276638062,-761.59947889,0.00019657,2]
[359718141,1746276638072,-761.59947889,0.00019657,2]
[359718142,1746276638083,-761.59947889,0.00019657,2]
[359718143,1746276638093,-761.59947889,0.00019657,2]
[359718144,1746276638103,-761.59947889,0.00019657,2]
[359718145,1746276638115,-761.59947889,0.00019657,2]
[359718146,1746276638125,-761.59947889,0.00019657,2]
[359718147,1746276638135,-761.59947889,0.00019657,2]
[359718148,1746276638145,-761.59947889,0.00019657,2]
[359718149,1746276638154,-761.59947889,0.00019657,2]
[359718150,1746276638164,-761.59947889,0.00019657,2]
[359718151,1746276638173,-761.59947889,0.00019657,2]
[359718152,1746276638183,-761.59947889,0.00019657,2]
[359718153,1746276638192,-761.59947889,0.00019657,2]
[359718154,1746276638202,-761.59947889,0.00019657,2]
[359718155,1746276638211,-761.59947889,0.00019657,2]
[359718156,1746276638221,-761.59947889,0.00019657,2]
[359718157,1746276638231,-761.59947889,0.00019657,2]
[359718158,1746276638241,-761.59947889,0.00019657,2]
[359718159,1746276638250,-150.0,0.00019659,2]
[359718160,1746276638260,-1491.82073661,0.00019662,2]
[359718161,1746276638270,-758.84,0.00019692,2]
[359718162,1746276638279,-29999.99,0.00019692,2]
[359718163,1746276638289,-9763.6,0.00019692,2]
[359718164,1746276638298,-1491.82073661,0.00019692,2]
[359718165,1746276638309,-207.4,0.00019716,2]
[359718166,1746276638318,-151.0,0.0001972,2]
[359718167,1746276638327,-668.65185757,0.0001972,2]
[359718168,1746276638337,-1491.82073661,0.00019721,2]
[359718169,1746276638347,-450.0,0.0001973,2]
[359718170,1746276638357,-450.0,0.0001973,2]
[359718171,1746276638366,-450.0,0.0001973,2]
[359718172,1746276638376,-450.0,0.0001973,2]
[359718173,1746276638387,-450.0,0.0001973,2]
[359718174,1746276638397,-450.0,0.0001973,2]
[359718176,1746276638407,-450.0,0.0001973,2]
[359718178,1746276638417,-450.0,0.0001973,2]
[359718180,1746276638426,-450.0,0.0001973,2]
[359718182,1746276638435,-583.71,0.0001973,2]
[359718185,1746276638445,-450.0,0.0001973,2]
[359718189,1746276638454,-450.0,0.0001973,2]
[359718192,1746276638464,-450.0,0.0001973,2]
[359718196,1746276638474,-450.0,0.0001973,2]
[359718200,1746276638483,-450.0,0.0001973,2]
[359718202,1746276638493,-450.0,0.0001973,2]
[359718205,1746276638502,-4010.19,0.0001973,2]
[359718209,1746276638512,-450.0,0.0001973,2]
[359718211,1746276638521,-870.76,0.0001973,2]
[359718213,1746276638531,-450.0,0.0001973,2]
[359718215,1746276638540,-450.0,0.0001973,2]
[359718217,1746276638550,-450.0,0.0001973,2]
[359718219,1746276638559,-450.0,0.0001973,2]
[359718221,1746276638569,-450.0,0.0001973,2]
[359718223,1746276638578,-450.0,0.0001973,2]
[359718224,1746276638588,-1876.42,0.0001973,2]